fUSD/lending_fUSD_20240404
["ID","MTS","AMOUNT","RATE_DAILY","PERIOD"]
[321452232,1712199039308,-2138.53,0.00052,7]
[321452233,1712199039318,-2138.53,0.00052,7]
[321452234,1712199039328,-2138.53,0.00052,7]
[321452235,1712199039338,-2138.53,0.00052,7]
[321452236,1712199039348,-2138.53,0.00052,7]
[321452237,1712199039358,-2138.53,0.00052,7]
[321452238,1712199039368,-2138.53,0.00052,7]
[321452239,1712199039377,-2138.53,0.00052,7]
[321452240,1712199039386,-2138.53,0.00052,7]
[321452241,1712199039396,-2138.53,0.00052,7]
[321452242,1712199039406,-2138.53,0.00052,7]
[321452243,1712199039415,-2138.53,0.00052,7]
[321452244,1712199039425,-2138.53,0.00052,7]
[321452245,1712199039434,-2138.53,0.00052,7]
[321452246,1712199039444,-2138.53,0.00052,7]
[321452247,1712199039454,-2138.53,0.00052,7]
[321452248,1712199039464,-39857.17,0.00052055,30]
[321452249,1712199039473,-171.073355,0.00052229,2]
[321452250,1712199039483,-150.0,0.00052238,7]
[321452251,1712199039494,-156.25742559,0.00052274,120]
[321452252,1712199039504,-150.0,0.0005228,7]
[321452253,1712199039519,-150.0,0.00052445,7]
[321452254,1712199039528,-1249.96692148,0.00052458,7]
[321452255,1712199039539,-166.74547613,0.00052488,2]
[321452256,1712199039548,-2173.0,0.000526,2]
[321452257,1712199039558,-150.0,0.00052602,7]
[321452258,1712199039567,-150.0,0.00052726,7]
[321452259,1712199039577,-150.05386163,0.00052739,60]
[321452260,1712199039588,-600.0,0.00052828,120]
[321452261,1712199039597,-160.16,0.00052859,2]
[321452262,1712199039606,-150.0,0.00052872,7]
[321452263,1712199039616,-171.073355,0.00052887,2]
[321452264,1712199039626,-150.0,0.00052928,7]
[321452265,1712199039635,-230.06168905,0.00052939,4]
[321452266,1712199039645,-150.0,0.00052997,7]
[321452267,1712199039656,-413.43,0.00052999,120]
[321452268,1712199039665,-1131.03,0.00052999,120]
[321452269,1712199039675,-703.0,0.00053,100]
[321452270,1712199039685,-150.0,0.00053,7]
[321452271,1712199039694,-156.25742559,0.00053041,120]
[321452272,1712199039704,-150.0,0.00053108,7]
[321452273,1712199039713,-150.0,0.0005314,7]
[321452274,1712199039723,-161.5,0.00053313,2]
[321452276,1712199039732,-150.0,0.0005335,7]
[321452278,1712199039742,-150.0,0.00053403,7]
[321452279,1712199039751,-166.74547613,0.0005345,2]
[321452280,1712199039762,-150.0,0.00053465,7]
[321452281,1712199039771,-300.0,0.00053469,7]
[321452282,1712199039781,-703.0,0.000535,101]
[321452283,1712199039791,-1009.38615581,0.000535,5]
[321452284,1712199039800,-150.0,0.00053539,7]
[321452285,1712199039809,-171.073355,0.00053544,2]
[321452286,1712199039818,-150.0,0.00053555,7]
[321452287,1712199039827,-392.369205,0.000536,32]
[321452288,1712199039837,-150.0,0.00053607,7]
[321452289,1712199039846,-156.25,0.00053699,2]
[321452290,1712199039855,-156.25,0.00053699,2]
[321452291,1712199039865,-387.73758389,0.0005375,30]
[321452292,1712199039874,-150.0,0.00053766,7]
[321452293,1712199039883,-150.0,0.00053768,7]
[321452294,1712199039893,-150.0,0.00053769,7]
[321452295,1712199039902,-500.0,0.0005377,90]
[321452296,1712199039911,-245.69075527,0.000538,14]
[321452297,1712199039921,-150.0,0.00053808,7]
[321452298,1712199039931,-1131.03,0.00053821,120]
[321452299,1712199039940,-2110.0,0.00053852,15]
[321452300,1712199039950,-32167.02178988,0.00053894,7]
[321452301,1712199039959,-150.0,0.00053929,7]
[321452302,1712199039968,-300.0,0.00053963,7]
[321452303,1712199039978,-151.98,0.0005399,120]
[321452304,1712199039987,-150.0,0.00053991,7]
[321452305,1712199039997,-657.46,0.00053999,30]
[321452306,1712199040006,-511.0,0.00054,2]
[321452307,1712199040017,-1055.03,0.00054,120]
[321452308,1712199040026,-697.12471798,0.00054,30]
[321452309,1712199040035,-265185.95349636,0.00054,2]
[321452310,1712199040068,-7103.53077201,0.00054,2]
[321452311,1712199040080,-826.45684807,0.00054,2]
[321452312,1712199040092,-5507.55245331,0.00054,2]
[321452313,1712199040119,-29994.96,0.00054,2]
[321452314,1712199040643,-150.0,0.00052241,7]
[321452315,1712199040652,-150.0,0.00052243,7]
[321452316,1712199040662,-150.0,0.00052261,7]
[321452317,1712199040671,-44.09660995,0.00053015,7]
[321452318,1712199041980,-150.0,0.00052238,7]
[321452319,1712199041989,-150.0,0.00052333,7]
[321452320,1712199041999,-5.50470051,0.00052559,7]
[321452321,1712199042302,-144.49529949,0.00052559,7]
[321452322,1712199042312,-147.22470051,0.00052925,7]
[321452325,1712199042823,-2.77529949,0.00052925,7]
[321452326,1712199042833,-105.90339005,0.00053015,7]
[321452327,1712199042842,-150.0,0.00053351,7]
[321452328,1712199042852,-150.0,0.00053361,7]
[321452329,1712199042861,-150.0,0.00053427,7]
[321452330,1712199042870,-150.0,0.0005345,7]
[321452331,1712199042879,-150.0,0.00053595,7]
[321452332,1712199042889,-150.0,0.00053678,7]
[321452333,1712199042898,-150.0,0.00053694,7]
[321452334,1712199042907,-150.0,0.00053696,7]
[321452335,1712199042916,-150.0,0.00053714,7]
[321452336,1712199042925,-150.0,0.00053849,7]
[321452337,1712199042934,-359.23095586,0.000539,2]
[321452338,1712199042943,-150.0,0.0005398,7]
[321452339,1712199042952,-150.0,0.00053987,7]
[321452340,1712199042962,-191381.54643025,0.00054,2]
[321452341,1712199042970,-703.0,0.00054,102]
[321452342,1712199042979,-1000.0,0.00054,7]
[321452343,1712199042989,-500.0,0.00054017,30]
[321452344,1712199042998,-150.0,0.00054031,7]
[321452345,1712199043007,-500.0,0.00054044,90]
[321452346,1712199043018,-150.0,0.00054047,7]
[321452347,1712199043027,-150.0,0.0005406,7]
[321452348,1712199043036,-150.0,0.00054063,7]
[321452349,1712199043045,-150.0,0.00054074,7]
[321452350,1712199043054,-150.0,0.00054088,7]
[321452351,1712199043064,-150.0,0.0005409,7]
[321452352,1712199043073,-150.0,0.0005409,7]
[321452353,1712199043083,-300.0,0.00054092,7]
[321452354,1712199043092,-245.9626,0.00054098,120]
[321452355,1712199043102,-500.0,0.000541,120]
[321452356,1712199043111,-500.0,0.000541,120]
[321452357,1712199043120,-500.0,0.000541,120]
[321452358,1712199043129,-500.0,0.000541,120]
[321452359,1712199043138,-500.0,0.000541,120]
[321452360,1712199043147,-500.0,0.000541,120]
[321452361,1712199043156,-500.0,0.000541,120]
[321452362,1712199043166,-500.0,0.000541,120]
[321452363,1712199043175,-500.0,0.000541,120]
[321452364,1712199043184,-500.0,0.000541,120]
[321452365,1712199043197,-500.0,0.000541,120]
[321452366,1712199043206,-500.0,0.000541,120]
[321452367,1712199043215,-500.0,0.000541,120]
[321452368,1712199043225,-500.0,0.000541,120]
[321452369,1712199043235,-500.0,0.000541,120]
[321452370,1712199043245,-500.0,0.000541,120]
[321452371,1712199043254,-500.0,0.000541,120]
[321452372,1712199043264,-500.0,0.000541,120]
[321452373,1712199043275,-500.0,0.000541,120]
[321452374,1712199043284,-500.0,0.000541,120]
[321452375,1712199043293,-620.78,0.000541,120]
[321452376,1712199043302,-150.0,0.000541,11]
[321452377,1712199043312,-150.0,0.00054108,7]
[321452378,1712199043321,-150.0,0.00054112,7]
[321452379,1712199043330,-150.0,0.00054113,7]
[321452380,1712199043340,-300.0,0.0005412,7]
[321452381,1712199043349,-150.0,0.00054122,7]
[321452382,1712199043358,-150.0,0.00054128,7]
[321452383,1712199043368,-150.0,0.00054138,7]
[321452384,1712199043378,-150.0,0.0005414,7]
[321452385,1712199043388,-150.0,0.00054145,7]
[321452386,1712199043397,-150.0,0.00054148,7]
[321452387,1712199043407,-2282.0,0.00054158,7]
[321452388,1712199043417,-150.0,0.00054163,7]
[321452389,1712199043427,-155.41052795,0.00054167,60]
[321452390,1712199043437,-150.0,0.00054171,7]
[321452391,1712199043446,-150.0,0.00054172,7]
[321452392,1712199043457,-150.0,0.00054188,7]
[321452393,1712199043467,-150.0,0.00054188,7]
[321452394,1712199043477,-150.0,0.00054192,7]
[321452395,1712199043487,-9529.95307546,0.00054197,120]
[321452396,1712199043497,-150.0,0.00054198,7]
[321452397,1712199043510,-84206.59947189,0.00054198,120]
[321452399,1712199043556,-11015.10695134,0.00054198,120]
[321452400,1712199043569,-6952.77598806,0.00054198,120]
[321452401,1712199043605,-150.0,0.00052196,7]
[321452402,1712199043614,-3131.0778,0.00054198,120]
[321452403,1712199043680,-2624.75676148,0.00051999,4]
[321452404,1712199043689,-150.0,0.00052351,7]
[321452405,1712199043698,-150.0,0.0005261,7]
[321452406,1712199043707,-150.0,0.00053086,7]
[321452407,1712199043717,-150.0,0.00053645,7]
[321452408,1712199043725,-150.0,0.00053917,7]
[321452409,1712199043735,-45397.31173216,0.00054198,120]
[321452410,1712199043744,-152.19,0.000542,7]
[321452411,1712199043753,-152.19,0.000542,7]
[321452412,1712199043762,-152.19,0.000542,7]
[321452413,1712199043773,-152.19,0.000542,7]
[321452414,1712199043782,-152.19,0.000542,7]
[321452415,1712199043791,-152.19,0.000542,7]
[321452416,1712199043800,-2138.53,0.000542,7]
[321452417,1712199043809,-2138.53,0.000542,7]
[321452418,1712199043818,-2138.53,0.000542,7]
[321452419,1712199043828,-2138.53,0.000542,7]
[321452420,1712199043837,-2138.53,0.000542,7]
[321452421,1712199043847,-2138.53,0.000542,7]
[321452422,1712199043856,-2138.53,0.000542,7]
[321452423,1712199043865,-948.7503194,0.000542,7]
[321452424,1712199043943,-150.0,0.00052214,7]
[321452425,1712199043952,-150.0,0.000531,7]
[321452426,1712199043963,-150.0,0.00053194,7]
[321452427,1712199043972,-150.0,0.00053372,7]
[321452428,1712199043981,-90.0,0.00053504,7]
[321452429,1712199044462,-60.0,0.00053504,7]
[321452430,1712199044472,-885.58555381,0.000542,7]
[321452431,1712199044500,-304.19412679,0.000542,7]
[321452432,1712199044513,-1724.75699024,0.000542,7]
[321452433,1712199044530,-413.77300976,0.000542,7]
[321452434,1712199044540,-1086.89362237,0.000542,7]
[321452435,1712199044552,-1051.63637763,0.000542,7]
[321452436,1712199044561,-1922.52353236,0.000542,7]
[321452437,1712199044572,-216.00646764,0.000542,7]
[321452438,1712199044583,-752.78417843,0.000542,7]
[321452478,1712199046715,-150.0,0.00052101,7]
[321452479,1712199046725,-150.0,0.00052287,7]
[321452480,1712199046735,-150.0,0.00052332,7]
[321452481,1712199046744,-150.0,0.00052516,7]
[321452482,1712199046753,-150.0,0.0005259,7]
[321452483,1712199046764,-150.0,0.00052629,7]
[321452484,1712199046775,-150.0,0.0005267,7]
[321452485,1712199046784,-150.0,0.00052678,7]
[321452486,1712199046794,-150.0,0.00052802,7]
[321452487,1712199046804,-150.0,0.00052806,7]
[321452488,1712199046815,-150.0,0.00052832,7]
[321452489,1712199046824,-150.0,0.00052888,7]
[321452490,1712199046835,-23.72485659,0.00052934,7]
[321452491,1712199046864,-126.27514341,0.00052934,7]
[321452492,1712199046874,-250.0,0.00053025,112]
[321452493,1712199046883,-150.0,0.00053044,7]
[321452494,1712199046891,-150.0,0.00053218,7]
[321452495,1712199046901,-150.0,0.00053301,7]
[321452496,1712199046909,-150.0,0.0005338,7]
[321452497,1712199046919,-150.0,0.00053386,7]
[321452498,1712199046928,-150.0,0.00053395,7]
[321452499,1712199046937,-150.0,0.00053455,7]
[321452500,1712199046948,-150.0,0.00053506,7]
[321452501,1712199046957,-150.0,0.00053514,7]
[321452502,1712199046966,-126.59344308,0.00053561,120]
[321452503,1712199047000,-468.40655692,0.00053561,120]
[321452504,1712199047010,-150.0,0.00053682,7]
[321452505,1712199047019,-150.0,0.00053701,7]
[321452506,1712199047028,-150.0,0.00054042,7]
[321452507,1712199047037,-150.0,0.00054145,7]
[321452508,1712199047045,-55.09885724,0.00054191,7]
[321452511,1712199072495,947.03580943,0.0004024,30]
[321452512,1712199079384,6535.76718784,0.0004024,30]
[321452513,1712199089626,1032.17748028,0.0004024,30]
[321452514,1712199090262,2698.79084759,0.0004024,30]
[321452515,1712199105604,1375.2618606,0.0004024,30]
[321452516,1712199135253,2015.75330691,0.0004024,30]
[321452517,1712199233499,526.71726015,0.0004024,30]
[321452518,1712199247165,12942.92582706,0.0004024,30]
[321452519,1712199250138,167.10936141,0.0001251,2]
[321452520,1712199250162,50.50304023,0.0001251,2]
[321452523,1712199279046,560.05742969,0.0004024,30]
[321452524,1712199280066,487.85323376,0.0004024,30]
[321452525,1712199280109,9770.60205814,0.0004024,30]
[321452526,1712199281121,693.39533473,0.0004024,30]
[321452527,1712199297702,305.60527236,0.0001251,2]
[321452528,1712199297722,356.10831259,0.0001251,2]
[321452529,1712199297742,356.10831259,0.0001251,2]
[321452530,1712199297762,306.34702261,0.0001251,2]
[321452531,1712199303668,3362.76257771,0.0002,10]
[321452532,1712199304329,49.76128998,0.0001251,2]
[321452533,1712199304351,356.10831259,0.0001251,2]
[321452534,1712199304370,356.10831259,0.0001251,2]
[321452535,1712199304390,356.10831259,0.0001251,2]
[321452536,1712199304409,356.10831259,0.0001251,2]
[321452537,1712199304430,192.27221681,0.0001251,2]
[321452538,1712199327642,1712.70850233,0.0002,10]
[321452539,1712199368378,235.295329,0.0004022,30]
[321452540,1712199584335,262.76897541,0.0004022,30]
[321452541,1712199588974,569.27750782,0.00019493,7]
[321452542,1712199668551,150.0,0.00040693,30]
[321452543,1712199751551,150.0,0.00040693,30]
[321452544,1712199784920,157.38,0.0002499,15]
[321452545,1712199785469,169.14,0.0002499,15]
[321452546,1712199786497,569.27750782,0.00021825,7]
[321452547,1712199946584,-357.67128148,0.00019478,2]
[321452548,1712199946605,-242.32871852,0.00019478,2]
[321452549,1712199947560,163.83609578,0.00016369,2]
[321452550,1712199947579,356.10831259,0.00016369,2]
[321452551,1712199947603,2013.72888906,0.00016369,2]
[321452552,1712199963566,853.9482759,0.00016369,2]
[321452553,1712199963996,-600.0,0.00019379,2]
[321452554,1712200149168,-342.22701228,0.00019175,2]
[321452555,1712200149190,-2215.50734386,0.00019176,2]
[321452560,1712200159107,-4.84601814,0.00019176,2]
[321452561,1712200159127,-1289.8622422,0.00019272,2]
[321452562,1712200159145,-442.68521538,0.00019273,2]
[321452563,1712200159165,-1789.2,0.00019274,2]
[321452564,1712200159185,-1789.2,0.00019277,2]
[321452565,1712200159204,-150.0,0.00019378,2]
[321452566,1712200159226,-300.0,0.00019378,2]
[321452567,1712200159245,-179.92310107,0.00019379,2]
[321452568,1712200159265,-323.58888878,0.00019379,2]
[321452569,1712200159284,-18347.28014808,0.00019379,2]
[321452570,1712200171114,-175.89,0.00018608,2]
[321452571,1712200171134,-531.41244433,0.00019271,2]
[321452572,1712200171156,-2929.25565567,0.00019379,2]
[321452573,1712200174111,-8946.3542771,0.00019379,2]
[321452574,1712200174133,-799.29093027,0.000195,2]
[321452632,1712200237999,-256.06,0.00019176,2]
[321452642,1712200238129,-4551.92238922,0.00019176,2]
[321452644,1712200238139,-43778.01414884,0.00019176,2]
[321452645,1712200238149,-49.24937334,0.000195,2]
[321452647,1712200238158,-156.00895705,0.0002,2]
[321452649,1712200238168,-357.67128148,0.00021315,2]
[321452651,1712200238177,-210.0,0.00021316,2]
[321452653,1712200238186,-831.96,0.00021422,2]
[321452655,1712200238195,-627.06,0.00023195,2]
[321452657,1712200238204,-191.2,0.00023196,2]
[321452659,1712200238214,-200.0,0.00023235,2]
[321452661,1712200238223,-23900.0,0.00023305,2]
[321452663,1712200238232,-534.12,0.00023305,2]
[321452665,1712200238243,-1429.11,0.00023315,2]
[321452667,1712200238253,-2706.3,0.00023377,2]
[321452669,1712200238263,-172.49,0.00023379,2]
[321452671,1712200238272,-275.0,0.00023447,2]
[321452673,1712200238281,-1000.0,0.00023452,2]
[321452675,1712200238292,-256.93,0.00023505,10]
[321452677,1712200238302,-500.0,0.00023505,2]
[321452679,1712200238311,-313.696797,0.00023634,2]
[321452681,1712200238321,-831.96,0.00023686,2]
[321452683,1712200238330,-160.14,0.00023781,2]
[321452685,1712200238340,-157.31,0.00023807,2]
[321452687,1712200238349,-1784.05,0.00023883,2]
[321452689,1712200238358,-904.92,0.00024055,2]
[321452691,1712200238367,-499.99,0.0002417,2]
[321452693,1712200238377,-150.0,0.00024192,2]
[321452695,1712200238386,-239.54,0.00024192,2]
[321452697,1712200238396,-150.0,0.00024192,2]
[321452699,1712200238405,-152.41,0.00024192,2]
[321452701,1712200238414,-160.14,0.00024195,2]
[321452703,1712200238423,-1002.19,0.00024359,2]
[321452705,1712200238433,-151.71,0.00024464,2]
[321452707,1712200238443,-164.39,0.00024557,2]
[321452709,1712200238453,-160.14,0.00024608,2]
[321452711,1712200238463,-692.35205847,0.00024728,2]
[321452713,1712200238472,-177.86184126,0.0002478,2]
[321452715,1712200238481,-100000.0,0.0002478,2]
[321452717,1712200238491,-1752.10097588,0.0002478,2]
[321452719,1712200238500,-177.86184121,0.00024793,2]
[321452721,1712200238510,-1752.10097586,0.00024793,2]
[321452723,1712200238520,-25555.07970609,0.000248,2]
[321452725,1712200238529,-177.86184121,0.00024807,2]
[321452727,1712200238539,-1752.10097586,0.00024807,2]
[321452729,1712200238549,-177.86184121,0.0002482,2]
[321452731,1712200238558,-177.86184121,0.00024833,2]
[321452733,1712200238568,-177.86184121,0.00024847,2]
[321452735,1712200238577,-177.86184121,0.0002486,2]
[321452737,1712200238587,-177.86184121,0.00024873,2]
[321452739,1712200238597,-750.37817959,0.00024878,2]
[321452741,1712200238608,-239.83565433,0.00024878,7]
[321452743,1712200238617,-164.4287187,0.00024878,2]
[321452745,1712200238626,-382.03370973,0.00024878,2]
[321452747,1712200238635,-987.6,0.00024878,2]
[321452749,1712200238644,-351.66003318,0.00024878,2]
[321452751,1712200238653,-508.52569033,0.00024878,2]
[321452753,1712200238662,-246.95500441,0.00024878,2]
[321452755,1712200238671,-370.57459041,0.00024878,2]
[321452756,1712200238680,-155.22891097,0.00024879,2]
[321452758,1712200238691,-245000.0,0.0002488,2]
[321452760,1712200238700,-449.4281,0.0002488,2]
[321452762,1712200238710,-328.87149081,0.0002488,2]
[321452764,1712200238719,-328.87149076,0.00024882,2]
[321452766,1712200238729,-328.87149076,0.00024884,2]
[321452768,1712200238738,-177.86184121,0.00024887,2]
[321452770,1712200238747,-328.87149076,0.00024887,2]
[321452772,1712200238756,-328.87149076,0.00024889,2]
[321452774,1712200238765,-328.87149076,0.00024891,2]
[321452776,1712200238774,-328.87149076,0.00024893,2]
[321452778,1712200238784,-328.87149076,0.00024896,2]
[321452780,1712200238797,-328.87149076,0.00024898,2]
[321452782,1712200238806,-153.55672207,0.00024899,2]
[321452784,1712200238815,-245.69075528,0.00024899,2]
[321452786,1712200238825,-153.55672204,0.00024899,2]
[321452788,1712200238837,-153.55672204,0.00024899,2]
[321452790,1712200238846,-153.55672204,0.00024899,2]
[321452792,1712200238855,-163.79383684,0.000249,2]
[321452794,1712200238865,-153.55672204,0.000249,2]
[321452796,1712200238876,-153.55672204,0.000249,2]
[321452798,1712200238886,-153.55672204,0.000249,2]
[321452800,1712200238896,-163.79383684,0.000249,2]
[321452802,1712200238905,-153.55672204,0.000249,2]
[321452804,1712200238915,-177.86184121,0.000249,2]
[321452806,1712200238925,-7500.0,0.000249,2]
[321452808,1712200238934,-328.87149076,0.000249,2]
[321452810,1712200238945,-445.75164725,0.000249,2]
[321452812,1712200238955,-163.28193337,0.000249,2]
[321452814,1712200238965,-1002.19,0.0002491,2]
[321452816,1712200238975,-242.87628046,0.0002497,2]
[321452818,1712200238984,-500.0,0.00024978,2]
[321452820,1712200238993,-1908.62613293,0.00024978,2]
[321452822,1712200239003,-223.4552445,0.00024978,2]
[321452824,1712200239012,-392.58249689,0.00024978,2]
[321452826,1712200239022,-156.25329021,0.00024978,2]
[321452828,1712200239031,-166.03020899,0.00024978,2]
[321452830,1712200239043,-464.25517672,0.00024978,2]
[321452832,1712200239052,-113182.4114157,0.0002498,2]
[321452834,1712200239062,-335325.81075788,0.0002498,2]
[321452836,1712200239072,-1000.0,0.00024999,2]
[321452838,1712200239081,-609.77116919,0.00024999,2]
[321452840,1712200239090,-285.50624881,0.00025,2]
[321452842,1712200239099,-21563513.57544881,0.00025,2]
[321452844,1712200239108,-1189024.86530394,0.00025,2]
[321452854,1712200239998,-439827.99291741,0.00025,2]
[321452855,1712200240008,-2601.01958159,0.00025,2]
[321452856,1712200240018,-155.0,0.00025,2]
[321452857,1712200240027,-1155.79,0.00025,2]
[321452858,1712200240037,-1198.31,0.00025,2]
[321452859,1712200240048,-1226.25,0.00025,2]
[321452860,1712200240058,-2030.65842961,0.00025,2]
[321452861,1712200240068,-127609.53220527,0.00025,2]
[321452862,1712200240078,-2683.91038238,0.00025,2]
[321452863,1712200240088,-150.0,0.00025014,2]
[321452864,1712200240097,-150.0,0.00025014,2]
[321452865,1712200240107,-161.95,0.00025014,2]
[321452866,1712200240116,-150.0,0.00025014,2]
[321452867,1712200240126,-150.0,0.00025014,2]
[321452868,1712200240136,-150.0,0.00025014,2]
[321452869,1712200240147,-150.0,0.00025014,2]
[321452870,1712200240157,-161.95,0.00025014,2]
[321452871,1712200240167,-904.92,0.00025014,2]
[321452872,1712200240177,-150.0,0.00025014,2]
[321452873,1712200240186,-161.95,0.00025014,2]
[321452874,1712200240195,-904.92,0.00025014,2]
[321452875,1712200240206,-150.0,0.00025014,2]
[321452876,1712200240215,-161.95,0.00025014,2]
[321452877,1712200240224,-162.42,0.00025014,2]
[321452878,1712200240233,-161.95,0.00025014,2]
[321452879,1712200240243,-161.95,0.00025014,2]
[321452880,1712200240252,-161.95,0.00025014,2]
[321452881,1712200240262,-161.95,0.00025014,2]
[321452882,1712200240271,-161.95,0.00025014,2]
[321452883,1712200240280,-161.95,0.00025014,2]
[321452884,1712200240290,-161.95,0.00025014,2]
[321452885,1712200240299,-161.95,0.00025014,2]
[321452886,1712200240308,-161.95,0.00025014,2]
[321452887,1712200240317,-161.95,0.00025014,2]
[321452888,1712200240326,-161.95,0.00025014,2]
[321452889,1712200240335,-151.4,0.00025014,2]
[321452890,1712200240344,-161.95,0.00025014,2]
[321452891,1712200240353,-904.92,0.00025014,2]
[321452892,1712200240362,-156.58,0.00025014,2]
[321452893,1712200240372,-348.62,0.00025014,2]
[321452894,1712200240381,-519.43,0.00025014,2]
[321452895,1712200240391,-848.26,0.00025014,2]
[321452896,1712200240400,-164.14,0.00025014,2]
[321452897,1712200240409,-160.14,0.00025021,2]
[321452898,1712200240419,-729.12,0.000251,2]
[321452899,1712200240428,-164.39,0.0002557,2]
[321452900,1712200240438,-831.96,0.0002595,2]
[321452901,1712200240447,-164.62,0.00025997,2]
[321452902,1712200240456,-2706.3,0.00026117,2]
[321452903,1712200240466,-157.31,0.00026188,2]
[321452904,1712200240475,-1000.0,0.00026383,2]
[321452905,1712200240484,-164.39,0.00026584,2]
[321452906,1712200240493,-454.02,0.00027123,2]
[321452907,1712200240502,-179.99049597,0.00027397,2]
[321452908,1712200240511,-250.0,0.00027397,2]
[321452909,1712200240521,-164.39,0.00027597,2]
[321452910,1712200240530,-164.62,0.00027836,2]
[321452911,1712200240539,-831.96,0.00028214,2]
[321452912,1712200240551,-157.31,0.00028568,2]
[321452913,1712200240561,-164.39,0.0002861,2]
[321452914,1712200240570,-2706.3,0.00028857,2]
[321452915,1712200240580,-560.73809275,0.00029,2]
[321452916,1712200240589,-1000.0,0.00029315,2]
[321452917,1712200240599,-593.83273675,0.000295,3]
[321452918,1712200240609,-164.62,0.00029675,2]
[321452919,1712200240618,-2640.21942399,0.0002999,2]
[321452920,1712200240628,-348.38136544,0.0003,4]
[321452921,1712200240637,-3206.28076084,0.0003,2]
[321452922,1712200240647,-297.90377655,0.0003,30]
[321452923,1712200240656,-606.74427312,0.0003,4]
[321452924,1712200240665,-155.0,0.0003,2]
[321452925,1712200240675,-778.63794889,0.0003,4]
[321452926,1712200240684,-3568.58703944,0.0003,4]
[321452927,1712200240694,-206.0,0.0003,2]
[321452928,1712200240704,-831.96,0.00030478,2]
[321452929,1712200240714,-1958.98051883,0.00030717,28]
[321452930,1712200240724,-157.31,0.00030949,2]
[321452931,1712200240733,-180.0,0.00031342,2]
[321452932,1712200240742,-186.11391572,0.000314,30]
[321452933,1712200240752,-164.62,0.00031514,2]
[321452934,1712200240762,-195.12,0.00031644,2]
[321452935,1712200240772,-331.73521384,0.00032,4]
[321452936,1712200240782,-1000.0,0.00032246,2]
[321452937,1712200240795,-1429.11,0.00032641,2]
[321452938,1712200240806,-955.0,0.000327,2]
[321452939,1712200240816,-1226.25,0.000327,2]
[321452940,1712200240825,-1198.31,0.000327,2]
[321452941,1712200240840,-374.0,0.000327,2]
[321452942,1712200240850,-831.96,0.00032742,2]
[321452943,1712200240860,-156.25,0.00032877,2]
[321452944,1712200240869,-156.25,0.00032877,2]
[321452945,1712200240879,-150.0,0.00032877,2]
[321452946,1712200240889,-156.25,0.00032877,2]
[321452947,1712200240898,-287.03237433,0.000329,30]
[321452948,1712200240907,-206.0,0.00033,2]
[321452949,1712200240918,-157.31,0.0003333,2]
[321452950,1712200240928,-231.48391455,0.0003335,2]
[321452951,1712200240937,-1155.79,0.000334,2]
[321452952,1712200240947,-150.0,0.00033742,2]
[321452953,1712200240956,-150.0,0.00034607,2]
[321452954,1712200240966,-9055.59018033,0.000348,4]
[321452955,1712200240976,-1281.5331215,0.00035,4]
[321452956,1712200240985,-1104.80900693,0.00035,2]
[321452957,1712200240995,-2722.09850664,0.00035,4]
[321452958,1712200241004,-831.96,0.00035006,2]